[Event "Elegant 1st Division League 2024"]
[Site "Dhaka"]
[Date "2024.07.16"]
[Round "6.8"]
[White "Sacchu, Afzal Hossain"]
[Black "Islam, Obaidul Shahin"]
[Result "0-1"]
[Annotator "RC"]
[ECO "D13"]
[WhiteElo "1981"]
[BlackElo "1976"]
[PlyCount "99"]
[EventDate "2024.07.10"]
[EventType "team-tourn"]
[EventCountry "BAN"]
[SourceTitle "playchess.com"]
[Source "ChessBase"]
[SourceQuality "1"]
[TimeControl "5400+30"]

1. d4 {[%emt 0:00:04]} d5 {[%emt 0:00:13]} 2. c4 {[%emt 0:00:17]} c6 {[%emt 0:00:01]} 3. cxd5 {[%emt 0:00:21]} cxd5 {[%emt 0:00:20]} 4. Nc3 {[%emt 0:00:02]} Nf6 {[%emt 0:00:15]} 5. Bf4 {[%emt 0:00:39]} e6 {[%emt 0:01:48]} 6. e3 {[%emt 0:00:14]} Nc6 {[%emt 0:03:29]} 7. Bd3 {[%emt 0:00:39]} Bd6 {[%emt 0:00:19]} 8. Bg3 {[%emt 0:00:29]} O-O {[%emt 0:00:27]} 9. Nf3 {[%emt 0:00:46]} Re8 {[%emt 0:00:38]} 10. Ne5 {[%emt 0:06:45]} Ne7 {[%emt 0:10:18]} 11. Rc1 {[%emt 0:03:19]} a6 {[%emt 0:06:00]} 12. a3 {[%emt 0:02:27]} b5 {[%emt 0:03:49]} 13. b4 {[%emt 0:00:52]} Bb7 {[%emt 0:01:54]} 14. O-O {[%emt 0:00:49]} Nc8 {[%emt 0:04:21]} 15. Bh4 {[%emt 0:09:30]} Be7 {[%emt 0:01:16]} 16. Bxf6 {[%emt 0:03:59]} Bxf6 {[%emt 0:02:37]} 17. a4 {[%emt 0:01:42]} bxa4 {[%emt 0:29:03]} 18. Nxa4 {[%emt 0:01:55]} Bxe5 {[%emt 0:06:50]} 19. dxe5 {[%emt 0:00:03]} Ne7 {[%emt 0:01:43]} 20. Nc5 {[%emt 0:01:50]} Qb6 {[%emt 0:01:12]} 21. Qg4 {[%emt 0:04:38]} Bc6 {[%emt 0:03:16]} 22. Rc3 {[%emt 0:12:29]} Ng6 {[%emt 0:04:10]} 23. Bxg6 {[%emt 0:00:38]} hxg6 {[%emt 0:00:07]} 24. Rfc1 {[%emt 0:01:49]} Bb5 {[%emt 0:01:48]} 25. Qd4 {[%emt 0:09:51]} Bc4 {[%emt 0:02:41]} 26. Rb1 {[%emt 0:01:37]} a5 {[%emt 0:01:00]} 27. b5 {[%emt 0:09:03]} a4 {[%emt 0:03:04]} 28. Ra3 {[%emt 0:02:48]} Ra5 {[%emt 0:04:02]} 29. Rxa4 {[%emt 0:03:28]} Rxb5 {[%emt 0:00:43]} 30. Rxb5 {[%emt 0:00:42]} Qxb5 {[%emt 0:00:10]} 31. Ra1 {[%emt 0:00:36]} Rc8 {[%emt 0:01:13]} 32. Na4 {[%emt 0:07:57]} Ra8 {[%emt 0:00:21]} 33. Qd1 {[%emt 0:00:38]} Bb3 {[%emt 0:00:23]} 34. Nc3 {[%emt 0:00:56]} Rxa1 {[%emt 0:03:19]} 35. Qxa1 {[%emt 0:00:23]} Qd3 {[%emt 0:01:19]} 36. Qe1 {[%emt 0:01:16]} g5 {[%emt 0:00:59]} 37. Ne2 {[%emt 0:07:03]} Qe4 {[%emt 0:02:10]} 38. Qc3 {[%emt 0:03:55]} Bc4 {[%emt 0:00:19]} 39. f3 {[%emt 0:03:31]} Qb1+ {[%emt 0:02:23]} 40. Kf2 {[%emt 0:00:30]} Qa2 {[%emt 0:00:30]} 41. Kg1 {[%emt 0:00:30]} Qb1+ 42. Nc1 {[%emt 0:00:30]} Kh7 {[%emt 0:01:00]} 43. Kf2 {[%emt 0:00:30]} Kg6 {[%emt 0:00:30]} 44. g4 {[%emt 0:00:30]} f6 {[%emt 0:00:30]} 45. exf6 gxf6 46. Qd2 {[%emt 0:01:00]} e5 {[%emt 0:01:00]} 47. Ne2 {[%emt 0:00:30]} Bxe2 {[%emt 0:00:30]} 48. Qxe2 {[%emt 0:00:30]} Qh1 {[%emt 0:00:30]} 49. Kg3 {[%emt 0:00:30]} Qg1+ {[%emt 0:00:30]} 50. Kh3 {[%emt 0:00:30]} 0-1

[Event "Elegant 1st Division League 2024"]
[Site "Dhaka"]
[Date "2024.07.16"]
[Round "6.9"]
[White "abu, Hanif"]
[Black "Islam, Sheik   Khairul"]
[Result "1/2-1/2"]
[Annotator "RC"]
[ECO "A84"]
[WhiteElo "2076"]
[BlackElo "1948"]
[PlyCount "74"]
[EventDate "2024.07.10"]
[EventType "team-tourn"]
[EventCountry "BAN"]
[SourceTitle "playchess.com"]
[Source "ChessBase"]
[SourceQuality "1"]
[TimeControl "5400+30"]

1. d4 {[%emt 0:01:26]} c6 {[%emt 0:00:09]} 2. e3 {[%emt 0:00:10]} d5 {[%emt 0:00:22]} 3. c4 {[%emt 0:00:06]} e6 {[%emt 0:00:31]} 4. Nc3 {[%emt 0:00:06]} f5 {[%emt 0:00:26]} 5. f4 {[%emt 0:02:39]} Nf6 {[%emt 0:00:13]} 6. Nf3 {[%emt 0:00:06]} Be7 {[%emt 0:00:09]} 7. Bd3 {[%emt 0:00:09]} O-O {[%emt 0:00:54]} 8. O-O {[%emt 0:00:08]} Nbd7 {[%emt 0:00:16]} 9. Ng5 {[%emt 0:00:20]} Nb8 {[%emt 0:00:18]} 10. Bd2 {[%emt 0:00:44]} Qe8 {[%emt 0:00:17]} 11. c5 {[%emt 0:00:23]} Bd8 {[%emt 0:01:12]} 12. b4 {[%emt 0:00:11]} Bc7 {[%emt 0:00:10]} 13. Nf3 {[%emt 0:00:35]} Nbd7 {[%emt 0:00:31]} 14. Ne5 {[%emt 0:00:16]} Ne4 {[%emt 0:00:06]} 15. Nxe4 {[%emt 0:00:42]} dxe4 {[%emt 0:00:13]} 16. Bc4 {[%emt 0:00:10]} Nf6 {[%emt 0:00:23]} 17. Qb3 {[%emt 0:00:31]} Nd5 {[%emt 0:00:06]} 18. a4 {[%emt 0:00:18]} Bxe5 {[%emt 0:00:26]} 19. dxe5 {[%emt 0:03:14]} Bd7 {[%emt 0:03:06]} 20. Rae1 {[%emt 0:00:07]} a6 {[%emt 0:00:17]} 21. Bc3 {[%emt 0:00:16]} Kh8 {[%emt 0:00:04]} 22. Bd4 {[%emt 0:00:21]} Rg8 {[%emt 0:01:21]} 23. Rf2 {[%emt 0:00:29]} Rd8 {[%emt 0:06:31]} 24. Rb2 {[%emt 0:04:27]} g5 {[%emt 0:00:54]} 25. fxg5 {[%emt 0:00:20]} Rxg5 {[%emt 0:00:04]} 26. b5 {[%emt 0:00:10]} axb5 {[%emt 0:00:41]} 27. axb5 {[%emt 0:00:12]} Rg7 {[%emt 0:00:59]} 28. bxc6 {[%emt 0:00:37]} Bxc6 {[%emt 0:00:24]} 29. Bb5 {[%emt 0:01:43]} Bxb5 {[%emt 0:18:06]} 30. Qxb5 {[%emt 0:00:16]} Qg8 {[%emt 0:00:13]} 31. Qf1 {[%emt 0:02:15]} Rf8 {[%emt 0:01:58]} 32. Reb1 {[%emt 0:00:59]} f4 {[%emt 0:00:11]} 33. Rf2 {[%emt 0:11:45]} Rgf7 {[%emt 0:00:16]} 34. Qe1 {[%emt 0:03:59]} f3 {[%emt 0:11:58]} 35. Kh1 {[%emt 0:01:36]} Qg4 {[%emt 0:05:38]} 36. gxf3 {[%emt 0:15:35]} Rxf3 {[%emt 0:02:32]} 37. Rg2 {[%emt 0:00:43]} Qh3 {[%emt 0:18:56]} 1/2-1/2

[Event "Elegant 1st Division League 2024"]
[Site "Dhaka"]
[Date "2024.07.16"]
[Round "6.10"]
[White "Faisal, Hossain"]
[Black "Ahmed, Feroz"]
[Result "1/2-1/2"]
[Annotator "NA"]
[ECO "B30"]
[WhiteElo "1872"]
[BlackElo "2042"]
[PlyCount "222"]
[EventDate "2024.07.10"]
[EventType "team-tourn"]
[EventCountry "BAN"]
[SourceTitle "playchess.com"]
[Source "ChessBase"]
[SourceQuality "1"]
[TimeControl "5400+30"]

1. e4 {[%emt 0:00:30]} c5 {[%emt 0:05:40]} 2. Nf3 {[%emt 0:00:00]} Nc6 {[%emt 0:00:07]} 3. Nc3 {[%emt 0:00:00]} e6 {[%emt 0:00:33]} 4. Bb5 {[%emt 0:04:02]} Nf6 {[%emt 0:04:02]} 5. O-O {[%emt 0:06:31]} Be7 {[%emt 0:05:14]} 6. h3 {[%emt 0:00:40] B30: Sicilian: 2...Nc6 3 Bb5, lines without ...g6.} O-O {[%emt 0:00:11]} 7. d4 {[%emt 0:02:57]} cxd4 {[%emt 0:00:27]} 8. Nxd4 {[%emt 0:00:01]} Qc7 {[%emt 0:01:17]} 9. Nxc6 {[%emt 1:20:19]} bxc6 {[%emt 0:00:51]} 10. Bd3 {[%emt 0:00:00]} d5 {[%emt 0:00:23]} 11. exd5 {[%emt 0:00:00]} cxd5 {[%emt 0:00:24]} 12. Bg5 {[%emt 0:00:00]} Rb8 {[%emt 0:01:27]} 13. Rb1 {[%emt 0:00:00]} h6 {[%emt 0:03:25]} 14. Bh4 {[%emt 0:00:00]} Rb4 {[%emt 0:00:39]} 15. Bg3 $1 {[%emt 0:00:00]} e5 {[%emt 0:00:48]} 16. Re1 {[%emt 0:00:00]} Bd6 {[%emt 0:00:30]} 17. Nb5 {[%emt 0:00:00]} Rxb5 {[%emt 0:00:54]} 18. Bxb5 {[%emt 0:00:00]} Bb7 {[%emt 0:04:19]} 19. Bd3 {[%emt 0:00:00]} g6 {[%emt 0:04:49]} (19... Re8 $16 {might work better.}) 20. Qe2 {[%emt 0:00:00]} (20. Qd2 $18) 20... e4 {[%emt 0:04:00]} 21. Bxd6 {[%emt 0:00:00]} Qxd6 {[%emt 0:00:07]} 22. Bb5 {[%emt 0:00:00]} a6 {[%emt 0:00:32]} 23. Ba4 {[%emt 0:00:00]} Nh5 {[%emt 0:00:38]} (23... d4 $16) 24. Rbd1 {[%emt 0:00:00]} Qe5 {[%emt 0:01:08]} 25. c3 {[%emt 0:00:00]} f5 {[%emt 0:00:09]} 26. Qd2 {[%emt 0:00:00]} f4 {[%emt 0:02:42]} 27. Bb3 {[%emt 0:00:00]} Nf6 {[%emt 0:03:46]} 28. c4 {[%emt 0:00:00]} dxc4 {[%emt 0:00:31]} 29. Bxc4+ {[%emt 0:00:00]} Kh8 {[%emt 0:00:12]} 30. Qd6 {[%emt 0:00:00]} Qe8 {[%emt 0:08:20]} 31. Qb6 {[%emt 0:00:00]} Qc8 {[%emt 0:06:01]} (31... Qe7 $142 32. Qd6 (32. Bxa6 Bd5 $18) 32... Qxd6 33. Rxd6 h5 34. Bxa6 Bxa6 35. Rxa6 Kh7) 32. Be6 {[%emt 0:00:00]} Qa8 {[%emt 0:00:50]} 33. Rd6 {[%emt 0:00:00]} e3 {[%emt 0:01:17]} 34. fxe3 {[%emt 0:00:00]} f3 {[%emt 0:01:38]} 35. gxf3 {[%emt 0:00:00]} Bxf3 {[%emt 0:00:04]} 36. Qd4 {[%emt 0:00:00]} Qb8 {[%emt 0:08:06]} 37. Qb6 {[%emt 0:00:00]} Ne4 {[%emt 0:02:13]} 38. Qd4+ {[%emt 0:00:00]} Nf6 {[%emt 0:00:17]} 39. Rf1 {[%emt 0:00:00]} (39. Rxa6 $2 {is a self mate.} Qg3+ 40. Kf1 Qg2#) 39... Qb7 {[%emt 0:12:49]} 40. Qf4 $18 {[%emt 0:00:00]} (40. Rd8 $142 Rxd8 41. Qxf6+ (41. Qxd8+ Kg7 $18) 41... Kh7 42. Qxd8 h5 43. Qg8+ Kh6 44. Qf8+ Qg7 45. Qf4+ (45. Rxf3 Qxf8 46. Rxf8 a5 47. e4 a4 48. Bc4 h4 49. e5 Kg7 50. Rf7+ Kh6) (45. Qxg7+ Kxg7 46. Rxf3 Kh7 47. Rf7+ Kh6 48. e4 a5 49. e5 Kg5) (45. Qxf3 g5 $18) 45... g5 46. Qxf3) 40... Nh7 {[%emt 0:03:15]} 41. Qd4+ {[%emt 0:00:00]} Nf6 {[%emt 0:03:15]} 42. Bd5 {[%emt 0:00:00]} Bxd5 {[%emt 0:12:06]} 43. Rdxf6 {[%emt 0:00:00]} Rxf6 {[%emt 0:00:16]} 44. Qxf6+ {[%emt 0:00:00]} Kh7 {[%emt 0:00:20]} 45. b3 {[%emt 0:04:03]} Qc7 {[%emt 0:00:38]} 46. Qf4 {[%emt 0:00:23]} Qc2 {[%emt 0:00:29]} 47. e4 {[%emt 0:05:39]} Qxe4 {[%emt 0:01:13]} 48. Qxe4 {[%emt 0:00:01]} Bxe4 {[%emt 0:00:02]} 49. Rf7+ {[%emt 0:00:11]} Kg8 {[%emt 0:00:02]} 50. Ra7 {[%emt 0:00:31]} Bd3 {[%emt 0:00:12]} 51. Kf2 {[%emt 0:00:40]} g5 {[%emt 0:00:18]} 52. Kg3 {[%emt 0:00:06]} h5 {[%emt 0:01:20]} 53. a3 {[%emt 0:00:47]} Kf8 {[%emt 0:00:32]} 54. b4 {[%emt 0:00:47]} Be2 {[%emt 0:00:44]} 55. a4 {[%emt 0:01:31]} h4+ {[%emt 0:00:16]} 56. Kf2 {[%emt 0:00:15]} Bc4 {[%emt 0:00:11]} 57. Rc7 {[%emt 0:00:32]} Be6 {[%emt 0:01:16]} 58. Kg2 {[%emt 0:00:25]} g4 {[%emt 0:00:28]} 59. hxg4 {[%emt 0:00:08]} Bxg4 {[%emt 0:00:01]} 60. b5 {[%emt 0:00:52]} axb5 {[%emt 0:00:08]} 61. axb5 {[%emt 0:00:01]} Ke8 {[%emt 0:00:06]} 62. b6 {[%emt 0:00:37]} Kd8 {[%emt 0:00:02]} 63. Kf2 {[%emt 0:02:14]} Be6 {[%emt 0:00:51]} 64. Rc6 {[%emt 0:00:40]} Bc8 {[%emt 0:00:06]} 65. Rc7 {[%emt 0:00:13]} Be6 {[%emt 0:00:16]} 66. Rh7 {[%emt 0:02:21]} Kc8 {[%emt 0:00:23]} 67. Rxh4 {[%emt 0:00:23]} Kb7 {[%emt 0:00:02]} 68. Rb4 {[%emt 0:00:11]} Bc8 {[%emt 0:00:12]} 69. Ke3 {[%emt 0:00:04]} Kc6 {[%emt 0:00:02]} 70. Kd4 {[%emt 0:00:18]} Ba6 {[%emt 0:00:18]} 71. Kc3 {[%emt 0:01:00]} Bc8 {[%emt 0:00:46]} 72. Rc4+ {[%emt 0:01:22]} Kb7 {[%emt 0:00:29]} 73. Rc7+ {[%emt 0:00:10]} Kb8 {[%emt 0:00:06]} 74. Kb4 {[%emt 0:00:18]} Bg4 {[%emt 0:00:16]} 75. Kc5 {[%emt 0:00:18]} Bf3 {[%emt 0:00:11]} 76. Rf7 {[%emt 0:00:21]} Bg2 {[%emt 0:00:04]} 77. Rg7 {[%emt 0:03:31]} Bf3 {[%emt 0:00:11]} 78. Rf7 {[%emt 0:00:00]} Bg2 {[%emt 0:00:10]} 79. Rf2 {[%emt 0:01:43]} Be4 {[%emt 0:00:28]} 80. Rf7 {[%emt 0:01:02]} Bg2 {[%emt 0:00:10]} 81. Ra7 {[%emt 0:00:52]} Bf3 {[%emt 0:00:12]} 82. Ra3 {[%emt 0:00:52]} Be4 {[%emt 0:00:39]} 83. Re3 {[%emt 0:00:10]} Bg2 {[%emt 0:00:08]} 84. Re7 {[%emt 0:00:08]} Bf3 {[%emt 0:00:08]} 85. b7 {[%emt 0:00:51]} Ka7 {[%emt 0:00:39]} 86. b8=Q+ {[%emt 0:01:07]} Kxb8 {[%emt 0:00:12]} 87. Rf7 {[%emt 0:00:08]} Bg2 {[%emt 0:00:10]} 88. Kb6 {[%emt 0:00:13]} Kc8 {[%emt 0:00:07]} 89. Kc5 {[%emt 0:00:46]} Be4 {[%emt 0:00:44]} 90. Kd6 {[%emt 0:00:24]} Kb8 {[%emt 0:00:48]} 91. Rc7 {[%emt 0:00:22]} Bf3 {[%emt 0:00:12]} 92. Rc3 {[%emt 0:00:20]} Bg2 {[%emt 0:00:20]} 93. Rb3+ {[%emt 0:00:10]} Kc8 {[%emt 0:00:41]} 94. Rc3+ {[%emt 0:00:23]} Kb8 {[%emt 0:00:05]} 95. Rc7 {[%emt 0:00:18]} Bf3 {[%emt 0:00:11]} 96. Rf7 {[%emt 0:00:06]} Bg2 {[%emt 0:00:05]} 97. Kc5 {[%emt 0:00:33]} Kc8 {[%emt 0:00:15]} 98. Rf2 {[%emt 0:01:05]} Be4 {[%emt 0:01:35]} 99. Kd6 {[%emt 0:00:34]} Kb8 {[%emt 0:03:21]} 100. Kd7 {[%emt 0:00:34]} Kb7 {[%emt 0:01:45]} 101. Rb2+ {[%emt 0:00:04]} Ka6 {[%emt 0:00:27]} 102. Kd6 {[%emt 0:00:11]} Bf3 {[%emt 0:00:12]} 103. Kc5 {[%emt 0:03:11]} Ka7 104. Rf2 {[%emt 0:00:00]} Be4 {[%emt 0:00:30]} 105. Rf4 {[%emt 0:00:00]} Bg2 {[%emt 0:00:07]} 106. Rf7+ {[%emt 0:00:00]} Kb8 {[%emt 0:00:11]} 107. Kb6 {[%emt 0:00:00]} Kc8 {[%emt 0:00:13]} 108. Kc5 {[%emt 0:02:30]} Kb8 {[%emt 0:00:21]} 109. Rf2 {[%emt 0:00:00]} Be4 {[%emt 0:00:08]} 110. Kb6 {[%emt 0:00:00]} Kc8 {[%emt 0:00:08]} 111. Rf4 {[%emt 0:00:00]} Bg2 {[%emt 0:00:07]} 1/2-1/2

[Event "Elegant 1st Division League 2024"]
[Site "Dhaka"]
[Date "2024.07.16"]
[Round "6.11"]
[White "Md, Sariatullah"]
[Black "Shejal Sahil Sanjay"]
[Result "1/2-1/2"]
[Annotator "RC"]
[ECO "B05"]
[WhiteElo "2005"]
[BlackElo "1750"]
[PlyCount "139"]
[EventDate "2024.07.10"]
[EventType "team-tourn"]
[EventCountry "BAN"]
[SourceTitle "playchess.com"]
[Source "ChessBase"]
[SourceQuality "1"]
[TimeControl "5400+30"]

1. e4 {[%emt 0:00:04]} Nf6 {[%emt 0:00:39]} 2. e5 {[%emt 0:00:11]} Nd5 {[%emt 0:00:01]} 3. d4 {[%emt 0:00:09]} d6 {[%emt 0:00:01]} 4. Nf3 {[%emt 0:00:29]} Bg4 {[%emt 0:00:02]} 5. exd6 {[%emt 0:00:08]} exd6 {[%emt 0:00:03]} 6. Be2 {[%emt 0:00:25]} Be7 {[%emt 0:00:03]} 7. O-O {[%emt 0:00:08]} O-O {[%emt 0:00:03]} 8. c4 {[%emt 0:00:53]} Nb6 {[%emt 0:00:01]} 9. Nc3 {[%emt 0:00:54]} Nc6 {[%emt 0:00:06]} 10. b3 {[%emt 0:00:20]} Bf6 {[%emt 0:00:15]} 11. Be3 {[%emt 0:00:09]} Re8 {[%emt 0:00:01]} 12. Rc1 {[%emt 0:01:14]} Ne7 {[%emt 0:00:19]} 13. h3 {[%emt 0:03:56]} Bxf3 {[%emt 0:02:57]} 14. Bxf3 {[%emt 0:00:06]} d5 {[%emt 0:03:26]} 15. g4 {[%emt 0:07:27]} Bh4 {[%emt 0:19:42]} 16. Ne2 {[%emt 0:04:17]} f5 {[%emt 1:10:51]} 17. Nf4 {[%emt 0:01:11]} c6 {[%emt 0:00:00]} 18. c5 {[%emt 0:05:10]} Nd7 {[%emt 0:00:00]} 19. Ng2 {[%emt 0:07:47]} fxg4 {[%emt 0:00:00]} 20. Nxh4 {[%emt 0:04:07]} gxf3 {[%emt 0:00:00]} 21. Qxf3 {[%emt 0:00:33]} Ng6 {[%emt 0:00:00]} 22. Nxg6 {[%emt 0:01:11]} hxg6 {[%emt 0:00:00]} 23. Qg4 {[%emt 0:00:54]} Nf8 {[%emt 0:00:00]} 24. Bg5 {[%emt 0:05:19]} Qd7 {[%emt 0:00:00]} 25. Qxd7 {[%emt 0:00:54]} Nxd7 {[%emt 0:00:00]} 26. Rfe1 {[%emt 0:00:29]} Kf7 {[%emt 0:00:00]} 27. f3 {[%emt 0:00:12]} Nf8 {[%emt 0:00:00]} 28. Bf4 {[%emt 0:01:42]} Ne6 {[%emt 0:00:00]} 29. Be5 {[%emt 0:02:23]} g5 {[%emt 0:00:00]} 30. b4 {[%emt 0:01:54]} a5 {[%emt 0:00:00]} 31. b5 {[%emt 0:00:17]} cxb5 {[%emt 0:00:00]} 32. Rb1 {[%emt 0:01:23]} Re7 {[%emt 0:00:00]} 33. a3 {[%emt 0:06:13]} b4 {[%emt 0:00:00]} 34. axb4 {[%emt 0:00:11]} axb4 {[%emt 0:00:00]} 35. Bd6 {[%emt 0:01:03]} Rd7 {[%emt 0:00:00]} 36. Rxb4 {[%emt 0:02:30]} Nd8 {[%emt 0:00:00]} 37. Reb1 {[%emt 0:03:57]} Ra3 {[%emt 0:00:00]} 38. Kg2 {[%emt 0:02:29]} Kg6 {[%emt 0:00:00]} 39. Bg3 {[%emt 0:04:26]} Rf7 {[%emt 0:00:00]} 40. R4b3 {[%emt 0:01:01]} Rxb3 {[%emt 0:00:00]} 41. Rxb3 {[%emt 0:00:02]} Nc6 {[%emt 0:00:00]} 42. Bf2 {[%emt 0:00:30]} Nd8 {[%emt 0:00:00]} 43. Re3 {[%emt 0:00:37]} Nc6 {[%emt 0:00:00]} 44. Re6+ {[%emt 0:02:10]} Rf6 {[%emt 0:00:00]} 45. Re1 {[%emt 0:00:09]} Rf7 {[%emt 0:00:00]} 46. Be3 {[%emt 0:00:41]} Re7 {[%emt 0:00:00]} 47. Kf2 {[%emt 0:00:12]} Nb4 {[%emt 0:00:07]} 48. Rg1 {[%emt 0:01:34]} Nd3+ {[%emt 0:01:08]} 49. Ke2 {[%emt 0:00:13]} Nf4+ {[%emt 0:00:01]} 50. Kd2 {[%emt 0:00:14]} Nxh3 {[%emt 0:00:08]} 51. Rg3 {[%emt 0:00:14]} g4 {[%emt 0:01:04]} 52. Rxg4+ {[%emt 0:01:05]} Kh5 {[%emt 0:01:04]} 53. Rg3 {[%emt 0:00:55]} Kh4 {[%emt 0:01:06]} 54. Rg6 {[%emt 0:00:25]} Rf7 {[%emt 0:02:52]} 55. Rd6 {[%emt 0:04:11]} Rxf3 {[%emt 0:00:56]} 56. Rxd5 {[%emt 0:00:20]} Rf7 {[%emt 0:00:48]} 57. Rd8 {[%emt 0:01:57]} g5 {[%emt 0:01:19]} 58. d5 {[%emt 0:00:34]} Nf4 {[%emt 0:01:50]} 59. Kc3 {[%emt 0:01:48]} Kg4 {[%emt 0:09:07]} 60. Kc4 {[%emt 0:01:06]} Kf3 {[%emt 0:00:00]} 61. Bd4 {[%emt 0:00:46]} g4 {[%emt 0:00:00]} 62. Rg8 {[%emt 0:03:41]} g3 {[%emt 0:00:00]} 63. c6 {[%emt 0:00:33]} Nxd5 {[%emt 0:00:00]} 64. Kxd5 {[%emt 0:00:58]} bxc6+ {[%emt 0:00:00]} 65. Kxc6 {[%emt 0:00:23]} Rf4 {[%emt 0:00:00]} 66. Kd5 {[%emt 0:00:59]} Rxd4+ {[%emt 0:00:00]} 67. Kxd4 {[%emt 0:00:33]} g2 {[%emt 0:00:00]} 68. Kd3 {[%emt 0:00:20]} Kf2 {[%emt 0:00:00]} 69. Rxg2+ {[%emt 0:00:55]} Kxg2 {[%emt 0:00:00]} 70. Kd4 {[%emt 0:01:39]} 1/2-1/2

[Event "Elegant 1st Division League 2024"]
[Site "Dhaka"]
[Date "2024.07.16"]
[Round "6.14"]
[White "Shafiqul, Islam"]
[Black "Abdul, Momin"]
[Result "0-1"]
[Annotator "RC"]
[ECO "A13"]
[WhiteElo "1937"]
[BlackElo "1911"]
[PlyCount "68"]
[EventDate "2024.07.10"]
[EventType "team-tourn"]
[EventCountry "BAN"]
[SourceTitle "playchess.com"]
[Source "ChessBase"]
[SourceQuality "1"]
[TimeControl "5400+30"]

1. Nf3 {[%emt 0:00:30]} Nf6 {[%emt 0:10:36]} 2. c4 {[%emt 0:00:00]} e6 {[%emt 0:00:33]} 3. e3 {[%emt 0:02:47]} b6 {[%emt 0:05:34]} 4. g3 {[%emt 0:03:20]} Bb7 {[%emt 0:00:18]} 5. Bg2 {[%emt 0:00:08]} d5 {[%emt 0:01:03]} 6. O-O {[%emt 0:00:32]} Nbd7 {[%emt 0:00:12]} 7. b3 {[%emt 0:00:10]} dxc4 {[%emt 0:03:04]} 8. bxc4 {[%emt 0:00:55]} Be7 {[%emt 0:01:18]} 9. Bb2 {[%emt 0:00:18]} h5 {[%emt 0:02:00]} 10. d4 {[%emt 0:02:10]} Nf8 {[%emt 0:02:59]} 11. Nbd2 {[%emt 0:01:28]} Ng6 {[%emt 1:08:23]} 12. Qa4+ {[%emt 0:05:31]} Kf8 {[%emt 0:00:30]} 13. Ne5 {[%emt 1:19:11]} Bxg2 {[%emt 0:00:00]} 14. Nxg6+ {[%emt 0:00:00]} fxg6 {[%emt 0:00:00]} 15. Kxg2 {[%emt 0:00:00]} h4 {[%emt 0:00:00]} 16. Qc6 {[%emt 0:00:00]} Qc8 {[%emt 0:00:00]} 17. Nf3 {[%emt 0:00:00]} hxg3 {[%emt 0:00:00]} 18. fxg3 {[%emt 0:00:00]} Kg8 {[%emt 0:00:00]} 19. Ne5 {[%emt 0:00:00]} Rh6 {[%emt 0:00:00]} 20. a4 {[%emt 0:00:00]} a5 {[%emt 0:00:00]} 21. Ba3 {[%emt 0:00:00]} Bxa3 {[%emt 0:00:00]} 22. Rxa3 {[%emt 0:00:00]} g5 {[%emt 0:00:00]} 23. g4 {[%emt 0:00:00]} Ra6 {[%emt 0:00:00]} 24. h3 {[%emt 0:00:00]} b5 {[%emt 0:00:00]} 25. Qxb5 {[%emt 0:00:00]} Qa8+ {[%emt 0:00:00]} 26. Rf3 {[%emt 0:00:00]} Rb6 {[%emt 0:00:00]} 27. Qc5 {[%emt 0:00:00]} Rb2+ {[%emt 0:00:00]} 28. Kg1 {[%emt 0:00:00]} Rxh3 {[%emt 0:00:00]} 29. d5 {[%emt 0:00:00]} Qb7 {[%emt 0:00:00]} 30. Ra1 {[%emt 0:00:00]} Rb1+ {[%emt 0:00:00]} 31. Rxb1 {[%emt 0:00:00]} Qxb1+ {[%emt 0:00:00]} 32. Rf1 {[%emt 0:02:59]} Rg3+ {[%emt 0:00:00]} 33. Kh2 {[%emt 0:01:40]} Qxf1 {[%emt 0:00:00]} 34. e4 {[%emt 0:00:26]} Qh3# {[%emt 0:00:00]} 0-1

[Event "Elegant 1st Division League 2024"]
[Site "Dhaka"]
[Date "2024.07.16"]
[Round "6.15"]
[White "Bivor Adak"]
[Black "Soumyajit Das"]
[Result "1-0"]
[Annotator "RC"]
[ECO "B01"]
[WhiteElo "1967"]
[BlackElo "1850"]
[PlyCount "69"]
[EventDate "2024.07.10"]
[EventType "team-tourn"]
[EventCountry "BAN"]
[SourceTitle "playchess.com"]
[Source "ChessBase"]
[SourceQuality "1"]
[TimeControl "5400+30"]

1. e4 {[%emt 1:31:00]} d5 {[%emt 0:01:48]} 2. exd5 {[%emt 0:00:00]} Qxd5 {[%emt 0:00:06]} 3. Nc3 {[%emt 0:00:00]} Qd8 {[%emt 0:00:14]} 4. Nf3 {[%emt 0:00:00]} Nf6 {[%emt 0:01:54]} 5. d4 {[%emt 0:00:00]} Bg4 {[%emt 0:00:21]} 6. h3 {[%emt 0:00:00]} Bxf3 {[%emt 0:00:25]} 7. Qxf3 {[%emt 0:00:00]} c6 {[%emt 0:00:07]} 8. Be3 {[%emt 0:00:00]} e6 {[%emt 0:00:40]} 9. g4 {[%emt 0:00:00]} Bb4 {[%emt 0:03:59]} 10. Bd3 {[%emt 0:00:00]} Qd5 {[%emt 0:12:57]} 11. Qxd5 {[%emt 0:00:00]} Nxd5 {[%emt 1:13:29]} 12. Bd2 {[%emt 0:00:00]} Nd7 {[%emt 0:00:00]} 13. Nxd5 {[%emt 0:00:00]} Bxd2+ {[%emt 0:00:00]} 14. Kxd2 {[%emt 0:00:00]} cxd5 {[%emt 0:00:00]} 15. f4 {[%emt 0:00:00]} a6 {[%emt 0:00:00]} 16. a4 {[%emt 0:00:00]} Ke7 {[%emt 0:02:30]} 17. a5 {[%emt 0:00:00]} Kd6 {[%emt 0:00:00]} 18. b3 {[%emt 0:00:00]} f6 {[%emt 0:00:00]} 19. Rhe1 {[%emt 0:00:00]} e5 {[%emt 0:00:00]} 20. fxe5+ {[%emt 0:00:00]} fxe5 {[%emt 0:00:00]} 21. Bf5 {[%emt 0:00:00]} e4 {[%emt 0:00:00]} 22. c4 {[%emt 0:00:00]} Nf6 {[%emt 0:03:00]} 23. cxd5 {[%emt 0:00:00]} Kxd5 {[%emt 0:00:30]} 24. Rac1 {[%emt 0:00:00]} g6 {[%emt 0:00:00]} 25. Rc5+ {[%emt 0:00:00]} Kxd4 {[%emt 0:00:00]} 26. Rec1 e3+ {[%emt 0:01:30]} 27. Ke2 {[%emt 0:00:00]} Nd5 {[%emt 0:00:00]} 28. R1c4+ {[%emt 0:00:00]} Ke5 {[%emt 0:00:00]} 29. Be4 {[%emt 0:00:00]} Rad8 {[%emt 0:00:00]} 30. Rb4 {[%emt 0:00:00]} h5 {[%emt 0:00:00]} 31. g5 {[%emt 0:00:00]} Rh7 {[%emt 0:00:49]} 32. h4 {[%emt 0:00:00]} Rg7 {[%emt 0:00:27]} 33. Bf3 {[%emt 0:00:00]} Rd6 {[%emt 0:00:57]} 34. Rd4 {[%emt 0:00:00]} Kf5 {[%emt 0:01:07]} 35. Rdxd5+ {[%emt 0:17:00]} 1-0